{"text_format":"1","workbook":"xlsx","n_sheets":2,"sheets":["Programme d’entraînement","Semaine 1"],"not_rendered":{"charts":0,"images":0,"macros":1,"external_links":2,"defined_names":21,"comments":0,"pivot_tables":0},"unopened":[],"bounds":{"document_bytes":16777216,"sheet_cells":100000,"rows_first":2000,"rows_last":500,"rows_between":2000,"halvings":0,"cell_chars":16384,"cell_head_chars":4096},"cells_cut":0,"cells_raw":0,"read":"whole","date_system":"1900"}

{"sheet":"Programme d’entraînement","index":0,"n_rows":27,"n_cols":17,"rows_kept":27,"cut":false,"hidden":false,"merged":[[9,11,9,16],[10,11,10,16],[11,11,11,16],[12,11,12,16],[20,4,20,9],[20,11,20,16],[13,4,13,9],[13,11,13,16],[9,4,9,9],[10,4,10,9],[11,4,11,9],[12,4,12,9],[24,4,24,9],[24,11,24,16],[21,4,21,9],[22,4,22,9],[23,4,23,9],[21,11,21,16],[22,11,22,16],[23,11,23,16]]}
[]
[null,"PROGRAMME ENTRAÎNEMENT"]
[]
[null,"DATE DE DÉBUT",null,null,"ÉCHAUFFEMENT",null,null,null,null,null,null,"MUSCULATION"]
[null,"2011-08-01",null,null,"EXERCICES","RÉPÉT.","POIDS","SEMAINES","FRÉQUENCE","DÉBUT",null,"EXERCICES","RÉPÉT.","POIDS","SEMAINES","FRÉQUENCE","DÉBUT"]
[null,"ÂGE",null,null,"Échauffement 1",10,30,4,"Quotidien","2011-08-01",null,"Musculation 1",7,100,4,"Quotidien","2011-08-01"]
[null,46,null,null,"Échauffement 2",10,40,4,"Quotidien","2011-08-01",null,"Musculation 2",7,125,4,"Quotidien","2011-08-01"]
[null,"SEXE",null,null,"Échauffement 3",10,20,4,"Quotidien","2011-08-01",null,"Musculation 3",7,75,4,"Quotidien","2011-08-01"]
[null,"M",null,null,"Échauffement 4",10,50,4,"Quotidien","2011-08-01",null,"Musculation 4",7,85,4,"Quotidien","2011-08-01"]
[null,"TAILLE (MÈTRES)",null,null,"Remarques :"]
[null,6]
[null,"TAILLE (CM)"]
[null,0]
[null,"POIDS (KG)"]
[null,244,null,null,"CARDIO",null,null,null,null,null,null,"RÉCUPÉRATION"]
[null,"PECTORAUX (CM)",null,null,"EXERCICES","RÉPÉT.","POIDS","SEMAINES","FRÉQUENCE","DÉBUT",null,"EXERCICES","RÉPÉT.","POIDS","SEMAINES","FRÉQUENCE","DÉBUT"]
[null,48,null,null,"Cardio 1",30,50,4,"Quotidien","2011-08-01",null,"Récupération 1",10,30,4,"Quotidien","2011-08-01"]
[null,"HANCHES (CM)",null,null,"Cardio 2",30,60,4,"Quotidien","2011-08-01",null,"Récupération 2",10,40,4,"Quotidien","2011-08-01"]
[null,44,null,null,"Cardio 3",30,40,4,"Quotidien","2011-08-01",null,"Récupération 3",10,20,4,"Quotidien","2011-08-01"]
[null,"MASSE GRAISSEUSE (CIBLE)",null,null,"Cardio 4",30,30,4,"Quotidien","2011-08-01",null,"Récupération 4",10,50,4,"Quotidien","2011-08-01"]
[null,9]
[null,"MASSE GRAISSEUSE"]
[null,11]
[null,"IMC (CIBLE)"]
[null,22]
[null,"IMC"]
[null,{"$f":"IF(B15,(B15/(ProgTailleMètres*12+ProgTailleCentimères)/(ProgTailleMètres*12+ProgTailleCentimères)*Facteur_IMC),0)","v":33.092010493827161}]

{"sheet":"Semaine 1","index":1,"n_rows":30,"n_cols":17,"rows_kept":30,"cut":false,"hidden":false,"merged":[[9,4,9,16],[16,4,16,16],[23,4,23,16],[30,4,30,16]]}
[]
[null,"PROGRAMME ENTRAÎNEMENT"]
[null,null,null,null,null,null,null,null,null,null,null,null,null,null,null,null,"Remarque : recopiez cette feuille pour chaque semaine."]
[null,"DÉBUT SEMAINE",null,null,"ÉCHAUFFEMENT","PROGRAMME",null,{"$f":"DateDébut","v":"2011-08-01"},null,{"$f":"H4+1","v":"2011-08-02"},null,{"$f":"J4+1","v":"2011-08-03"},null,{"$f":"L4+1","v":"2011-08-04"},null,{"$f":"N4+1","v":"2011-08-05"}]
[null,"2011-08-01",null,null,"EXERCICES","RÉPÉT.","POIDS","RÉPÉT.","POIDS","RÉPÉT.","POIDS","RÉPÉT.","POIDS","RÉPÉT.","POIDS","RÉPÉT.","POIDS"]
[null,"POIDS ACTUEL (KG)",null,null,{"$f":"'Programme d’entraînement'!E6","v":"Échauffement 1"},{"$f":"'Programme d’entraînement'!F6","v":10},{"$f":"'Programme d’entraînement'!G6","v":30},10,30,10,30,10,30,10,30,10,30]
[null,241,null,null,{"$f":"'Programme d’entraînement'!E7","v":"Échauffement 2"},{"$f":"'Programme d’entraînement'!F7","v":10},{"$f":"'Programme d’entraînement'!G7","v":40},10,40,10,40,10,40,10,40,10,40]
[null,"PECTORAUX ACTUELS (CM)",null,null,{"$f":"'Programme d’entraînement'!E8","v":"Échauffement 3"},{"$f":"'Programme d’entraînement'!F8","v":10},{"$f":"'Programme d’entraînement'!G8","v":20},10,20,10,20,10,20,10,20,10,20]
[null,48,null,null,{"$f":"'Programme d’entraînement'!E9","v":"Échauffement 4"},{"$f":"'Programme d’entraînement'!F9","v":10},{"$f":"'Programme d’entraînement'!G9","v":50},10,50,10,50,10,50,10,50,10,50]
[null,"HANCHES ACTUELLES (CM)"]
[null,44,null,null,"MUSCULATION","PROGRAMME",null,{"$f":"DateDébut","v":"2011-08-01"},null,{"$f":"H11+1","v":"2011-08-02"},null,{"$f":"J11+1","v":"2011-08-03"},null,{"$f":"L11+1","v":"2011-08-04"},null,{"$f":"N11+1","v":"2011-08-05"}]
[null,"MASSE GRAISSEUSE ACTUELLE",null,null,"EXERCICES","RÉPÉT.","POIDS","RÉPÉT.","POIDS","RÉPÉT.","POIDS","RÉPÉT.","POIDS","RÉPÉT.","POIDS","RÉPÉT.","POIDS"]
[null,10.8,null,null,{"$f":"'Programme d’entraînement'!L6","v":"Musculation 1"},{"$f":"'Programme d’entraînement'!M6","v":7},{"$f":"'Programme d’entraînement'!N6","v":100},5,100,6,90,7,100,7,100,7,100]
[null,"MASSE GRAISSEUSE (CIBLE)",null,null,{"$f":"'Programme d’entraînement'!L7","v":"Musculation 2"},{"$f":"'Programme d’entraînement'!M7","v":7},{"$f":"'Programme d’entraînement'!N7","v":125},5,125,6,125,5,125,7,125,7,125]
[null,9,null,null,{"$f":"'Programme d’entraînement'!L8","v":"Musculation 3"},{"$f":"'Programme d’entraînement'!M8","v":7},{"$f":"'Programme d’entraînement'!N8","v":75},7,75,7,75,7,75,7,75,7,75]
[null,"IMC ACTUEL",null,null,{"$f":"'Programme d’entraînement'!L9","v":"Musculation 4"},{"$f":"'Programme d’entraînement'!M9","v":7},{"$f":"'Programme d’entraînement'!N9","v":85},6,85,7,85,7,85,7,85,7,85]
[null,{"$f":"IFERROR(IF(B7,(B7/([1]!PlanHeightFeet*12+[1]!PlanHeightInches)/([1]!PlanHeightFeet*12+[1]!PlanHeightInches)*Facteur_IMC),0),0)","v":0}]
[null,"IMC (CIBLE)",null,null,"CARDIO","PROGRAMME",null,{"$f":"DateDébut","v":"2011-08-01"},null,{"$f":"H18+1","v":"2011-08-02"},null,{"$f":"J18+1","v":"2011-08-03"},null,{"$f":"L18+1","v":"2011-08-04"},null,{"$f":"N18+1","v":"2011-08-05"}]
[null,{"$f":"'Programme d’entraînement'!B25","v":22},null,null,"EXERCICES","RÉPÉT.","POIDS","RÉPÉT.","POIDS","RÉPÉT.","POIDS","RÉPÉT.","POIDS","RÉPÉT.","POIDS","RÉPÉT.","POIDS"]
[null,null,null,null,{"$f":"'Programme d’entraînement'!E17","v":"Cardio 1"},{"$f":"'Programme d’entraînement'!F17","v":30},{"$f":"'Programme d’entraînement'!G17","v":50},30,50,30,50,30,50,30,50,30,50]
[null,null,null,null,{"$f":"'Programme d’entraînement'!E18","v":"Cardio 2"},{"$f":"'Programme d’entraînement'!F18","v":30},{"$f":"'Programme d’entraînement'!G18","v":60},25,60,26,60,29,60,30,60,30,60]
[null,null,null,null,{"$f":"'Programme d’entraînement'!E19","v":"Cardio 3"},{"$f":"'Programme d’entraînement'!F19","v":30},{"$f":"'Programme d’entraînement'!G19","v":40},26,40,27,40,30,40,30,40,28,40]
[null,null,null,null,{"$f":"'Programme d’entraînement'!E20","v":"Cardio 4"},{"$f":"'Programme d’entraînement'!F20","v":30},{"$f":"'Programme d’entraînement'!G20","v":30},30,30,30,30,30,30,30,30,30,30]
[]
[null,null,null,null,"RÉCUPÉRATION","PROGRAMME",null,{"$f":"DateDébut","v":"2011-08-01"},null,{"$f":"H25+1","v":"2011-08-02"},null,{"$f":"J25+1","v":"2011-08-03"},null,{"$f":"L25+1","v":"2011-08-04"},null,{"$f":"N25+1","v":"2011-08-05"}]
[null,null,null,null,"EXERCICES","RÉPÉT.","POIDS","RÉPÉT.","POIDS","RÉPÉT.","POIDS","RÉPÉT.","POIDS","RÉPÉT.","POIDS","RÉPÉT.","POIDS"]
[null,null,null,null,{"$f":"'Programme d’entraînement'!L17","v":"Récupération 1"},{"$f":"'Programme d’entraînement'!M17","v":10},{"$f":"'Programme d’entraînement'!N17","v":30},10,30,10,30,10,30,10,30,10,30]
[null,null,null,null,{"$f":"'Programme d’entraînement'!L18","v":"Récupération 2"},{"$f":"'Programme d’entraînement'!M18","v":10},{"$f":"'Programme d’entraînement'!N18","v":40},10,40,10,40,10,40,10,40,10,40]
[null,null,null,null,{"$f":"'Programme d’entraînement'!L19","v":"Récupération 3"},{"$f":"'Programme d’entraînement'!M19","v":10},{"$f":"'Programme d’entraînement'!N19","v":20},10,20,10,20,10,20,10,20,10,20]
[null,null,null,null,{"$f":"'Programme d’entraînement'!L20","v":"Récupération 4"},{"$f":"'Programme d’entraînement'!M20","v":10},{"$f":"'Programme d’entraînement'!N20","v":50},10,50,10,50,10,50,10,50,10,50]